Cogmind - Beta 11.1 @@@ ROGUE MODE // 2022.05.13 @ 21:37:24 Player: aoemica Result: Destroyed by G-34 Mercenary with Small Laser Performance ------------- Evolutions (0) 0 Regions Visited (4) 800 Robots Destroyed (40) 200 Value Destroyed (831) 831 Prototype IDs (27) 540 Alien Tech Used (0) 0 Bonus (300) 300 TOTAL SCORE: 2671 Bonus ------- Aligned with FarCom 300 Cogmind --------- Core Integrity 0/250 Matter 258/300 Energy 250/250 System Corruption 0% Temperature Cool (96) Movement Treading (160) Location -9/Mines Parts ------- > --- POWER (1) -------- Ion Engine > --- PROPULSION (2) --- Light Treads Light Treads > --- UTILITY (2) ------ Large Storage Unit Hardened Light Armor Plating > --- WEAPON (2) ------- Heavy Assault Rifle Heavy Battle Rifle > --- INVENTORY (15) --- Light Treads Light Treads Light Treads Light Treads High-capacity Battery (250) High-capacity Matter Pod (200) Hardened Light Armor Plating Hardened Light Armor Plating Firepult Heavy Assault Rifle Heavy Assault Rifle Heavy Assault Rifle Grenade Launcher Grenade Launcher Peak State ------------ > --- POWER ------------ Ion Engine > --- PROPULSION ------- Light Treads Light Treads > --- UTILITY ---------- Large Storage Unit Hardened Light Armor Plating > --- WEAPON ----------- Heavy Assault Rifle Heavy Battle Rifle > --- INVENTORY -------- Light Treads Light Treads Light Treads Light Treads High-capacity Battery High-capacity Matter Pod Hardened Light Armor Plating Hardened Light Armor Plating Firepult Heavy Assault Rifle Heavy Assault Rifle Heavy Assault Rifle Grenade Launcher Grenade Launcher [Rating: 15] Favorites ----------- Power Ion Engine Engine Ion Engine Propulsion Light Treads Treads Light Treads Leg Aluminum Leg Utility Large Storage Unit Storage Large Storage Unit Protection Hardened Light Armor Plating Weapon Heavy Assault Rifle Ballistic Gun Heavy Assault Rifle Launcher Grenade Launcher Build | -11 -10 -10 -10 -9 ------- Run | Scr Mat Min Exi Min Slots Evolved . | . . . . . Power . | . . . . . Propulsion . | . . . . . Utility . | . . . . . Weapon . | . . . . . Parts Attached 30 | . 27 2 1 . Power 4 | . 4 . . . Engine 4 | . 4 . . . Core . | . . . . . Reactor . | . . . . . Propulsion 8 | . 8 . . . Treads 5 | . 5 . . . Leg 3 | . 3 . . . Wheel . | . . . . . Hover . | . . . . . Flight . | . . . . . Utility 7 | . 6 . 1 . Device . | . . . . . Storage 2 | . 2 . . . Processor . | . . . . . Hackware . | . . . . . Protection 5 | . 4 . 1 . Artifact . | . . . . . Weapon 11 | . 9 2 . . Energy Gun . | . . . . . Energy Cannon . | . . . . . Ballistic Gun 10 | . 8 2 . . Ballistic Cannon . | . . . . . Launcher 1 | . 1 . . . Special Weapon . | . . . . . Impact Weapon . | . . . . . Slashing Weapon . | . . . . . Piercing Weapon . | . . . . . Special Melee Weapon . | . . . . . Unidentified Prototypes . | . . . . . Parts Lost 1 | . 1 . . . Power . | . . . . . Propulsion . | . . . . . Utility 1 | . 1 . . . Weapon . | . . . . . Highest Loss Streak 1 | . 1 . . . To Critical Strikes . | . . . . . Average Slot Usage (%) 95 | . 92 100 100 100 Engine 14 | . 14 14 14 14 Treads 19 | . 13 28 28 28 Leg 8 | . 14 . . . Storage 14 | . 14 14 14 14 Protection 10 | . 7 14 14 14 Ballistic Gun 27 | . 27 27 28 28 Naked Turns . | . . . . . Heaviest Build 37 | 13 36 37 37 37 Greatest Support 40 | 20 40 40 40 40 Greatest Overweight (x) 1 | . 1 . . . Average Overweight (x) . | . . . . . Largest Inventory Capacity 15 | . 15 15 15 15 Average Capacity 13 | . 12 15 15 15 Most Carried 15 | . 15 15 15 15 Average Carried 12 | . 11 15 14 15 Final Capacity 15 | 8 15 15 15 15 Final Carried 15 | 6 15 15 15 15 Class Distribution -------------------- 100% | Mutant Dominant Class ---------------- Mutant | -10/Materials Mutant | -10/Mines Mutant | -10/Exiles Mutant | -9/Mines Resources | -11 -10 -10 -10 -9 ----------- Run | Scr Mat Min Exi Min Matter Collected 969 | 200 500 109 . 160 Remotely . | . . . . . Salvage Created 1526 | . 837 189 . 500 Parts 96 | . 61 7 . 28 Haulers Intercepted 2 | . 2 . . . Recyclers Shooed 6 | . 3 1 . 2 Parts Field Recycled . | . . . . . Retrieved Matter . | . . . . . Parts Self-Destructed . | . . . . . Prevented . | . . . . . Kills | -11 -10 -10 -10 -9 ------- Run | Scr Mat Min Exi Min Combat Hostiles Destroyed 25 | . 15 5 . 5 Guns 25 | . 15 5 . 5 Classes Destroyed 9 | . 7 . . 2 Worker 2 | . 1 1 . . Tunneler 3 | . . . . 3 Hauler 2 | . 2 . . . Recycler 5 | . 2 . . 3 Operator 1 | . 1 . . . Watcher 2 | . 2 . . . Swarmer 6 | . 6 . . . Grunt 16 | . 9 4 . 3 Brawler 2 | . . . . 2 Best Kill Streak 8 | . 8 3 . 5 Combat Bots Only 8 | . 8 2 . 3 Max Kills in Single Turn 2 | . 2 2 . 1 Gunslinging 1 | . 1 . . . Exploded . | . . . . . Melee . | . . . . . Uniques/NPCs Destroyed 1 | . . 1 . . YI-UF0 (-10/Mines) Combat | -11 -10 -10 -10 -9 -------- Run | Scr Mat Min Exi Min Damage Taken 1162 | . 506 322 . 334 Core 255 | . 90 64 . 101 Absorbed by Shields . | . . . . . Regen/Repaired (Parts) 246 | . 246 . . . Core Remaining (%) 100 | 100 . . . . Volleys Fired 113 | . 67 14 . 32 Largest 2 | . 2 2 . 2 Hottest 56 | . 46 56 . 56 Shots Fired 226 | . 134 28 . 64 Gun 226 | . 134 28 . 64 Cannon . | . . . . . Launcher . | . . . . . Special . | . . . . . Kinetic 226 | . 134 28 . 64 Thermal . | . . . . . Explosive . | . . . . . Electromagnetic . | . . . . . Robot Hit Streak 14 | . 11 14 . 7 Robot Miss Streak 5 | . 3 3 . 5 Penetration Max . | . . . . . Secondary Targets 2 | . 1 . . 1 Max Gunslinging Chain 1 | . 1 . . 1 Shots Hit Robots 145 | . 90 17 . 38 Core Hits 65 | . 40 10 . 15 Critical Kills . | . . . . . Critical Parts Destroyed 1 | . 1 . . . Critical Strikes 1 | . 1 . . . Destroy 1 | . 1 . . . Melee Attacks . | . . . . . Impact . | . . . . . Slashing . | . . . . . Piercing . | . . . . . Sneak Attacks . | . . . . . Combat Hostiles . | . . . . . Follow-up Attacks . | . . . . . Damage Inflicted 2301 | . 1240 357 . 704 Guns 2063 | . 1097 277 . 689 Cannons . | . . . . . Explosions 37 | . . 37 . . Melee . | . . . . . Ramming 201 | . 143 43 . 15 Kinetic 2063 | . 1097 277 . 689 Thermal 37 | . . 37 . . Explosive . | . . . . . Electromagnetic . | . . . . . Impact . | . . . . . Slashing . | . . . . . Piercing . | . . . . . Highest Corruption . | . . . . . Average Corruption . | . . . . . Corruption Purged . | . . . . . Corruption Blocked . | . . . . . Overload Shots . | . . . . . Overflow Damage . | . . . . . Projectiles . | . . . . . Explosions . | . . . . . Melee . | . . . . . Knockbacks 3 | . 2 . . 1 Impact 3 | . 2 . . 1 Kinetic . | . . . . . Secondary . | . . . . . Self-Inflicted Damage . | . . . . . Shots . | . . . . . Rammed 10 | . 4 5 . 1 Targets Rammed 55 | . 48 5 . 2 Kicked 44 | . 44 . . . Crushed 1 | . . . . 1 Highest Temperature 90 | . 28 72 . 90 Average Temperature 21 | . 7 33 . 29 Received Heat Transfer 321 | . 159 102 . 60 Siege Activations . | . . . . . Robots Corrupted . | . . . . . Combat Hostiles . | . . . . . Parts Fried . | . . . . . Impact Corruptions . | . . . . . Robots Melted . | . . . . . Combat Hostiles . | . . . . . Parts Melted . | . . . . . Heat Transferred 50 | . . 50 . . Parts Sabotaged . | . . . . . Parts Stolen . | . . . . . Parts Stripped . | . . . . . Power Chain Reactions . | . . . . . Missiles Intercepted . | . . . . . Alert | -11 -10 -10 -10 -9 ------- Run | Scr Mat Min Exi Min Peak Influence 237 | . 237 119 . 159 Initial 1 | . . 1 . . Average 65 | . 69 38 . 113 Maximum Alert Level 1 | . 1 . . . Low Security (%) 94 | . 91 100 . 100 Level 1 5 | . 8 . . . Level 2 . | . . . . . Level 3 . | . . . . . Level 4 . | . . . . . Level 5 . | . . . . . High Security . | . . . . . Max Security . | . . . . . Squads Dispatched 4 | . 4 . . . Investigation 2 | . 2 . . . Extermination . | . . . . . Reinforcement 2 | . 2 . . . Assault . | . . . . . Garrison . | . . . . . Intercept . | . . . . . Searches Triggered . | . . . . . Construction Impeded . | . . . . . Haulers Reinforced . | . . . . . Active Scanning Responses . | . . . . . Cargo Convoy Interrupts . | . . . . . Stealth | -11 -10 -10 -10 -9 --------- Run | Scr Mat Min Exi Min Distress Signals . | . . . . . Communications Jammed . | . . . . . Distress Signals . | . . . . . Times Spotted 40 | . 28 5 . 7 Peak Tracking Total 4 | . 4 2 . 3 Tactical Retreats . | . . . . . Traps | -11 -10 -10 -10 -9 ------- Run | Scr Mat Min Exi Min Traps Triggered 2 | . 2 . . . Indirectly . | . . . . . Trap Hack Attempts . | . . . . . Triggered . | . . . . . Disarmed . | . . . . . Reprogrammed . | . . . . . Reused . | . . . . . Traps Extracted . | . . . . . Installed . | . . . . . Triggered . | . . . . . Machines | -11 -10 -10 -10 -9 ---------- Run | Scr Mat Min Exi Min Machines Disabled 1 | . . 1 . . Max in Single Turn 1 | . . 1 . . Machines Sabotaged . | . . . . . Garrisons Compromised . | . . . . . Overloaded Fab Kills . | . . . . . Hacking | -11 -10 -10 -10 -9 --------- Run | Scr Mat Min Exi Min Machines Accessed 11 | . 8 1 2 . Terminals 6 | . 5 1 . . Fabricators . | . . . . . Repair Stations 1 | . 1 . . . Recycling Units 2 | . 2 . . . Scanalyzers . | . . . . . Garrison Access . | . . . . . Total Hacks 37 | . 29 6 2 . Successful 28 | . 22 4 2 . Failed 7 | . 6 1 . . Catastrophic . | . . . . . Database Lockouts 2 | . 1 1 . . Manual 18 | . 11 6 1 . Terminals 18 | . 12 6 . . Fabricators . | . . . . . Repair Stations 15 | . 15 . . . Recycling Units 2 | . 2 . . . Scanalyzers . | . . . . . Garrison Access . | . . . . . Terminal Hacks 8 | . 4 2 2 . Record 1 | . . . 1 . Robot Analysis 2 | . 1 1 . . Prototype ID Bank 2 | . 1 1 . . Patrol Status 1 | . 1 . . . Zone Layout 1 | . 1 . . . EX-Prototype ID Bank 1 | . . . 1 . Fabricator Hacks . | . . . . . Repair Station Hacks 12 | . 12 . . . Scan Component 6 | . 6 . . . Repair 6 | . 6 . . . Recycling Unit Hacks . | . . . . . Scanalyzer . | . . . . . Garrison Access Hacks . | . . . . . Unauthorized Hacks 8 | . 6 2 . . Terminals 6 | . 4 2 . . Track 1 | . . 1 . . Botnet 4 | . 4 . . . Disrupt 1 | . . 1 . . Fabricators . | . . . . . Repair Stations . | . . . . . Recycling Units 2 | . 2 . . . Tunnel 2 | . 2 . . . Scanalyzers . | . . . . . Garrison Access . | . . . . . Data Cores Recovered . | . . . . . Used . | . . . . . Hacking Detections 6 | . 5 1 . . Full Trace Events . | . . . . . Feedback Events . | . . . . . Feedback Blocked . | . . . . . Robot Schematics Acquired . | . . . . . Robots Built . | . . . . . Authchips . | . . . . . Time . | . . . . . Total Robot Build Rating . | . . . . . Part Schematics Acquired . | . . . . . Parts Built . | . . . . . Authchips . | . . . . . Time . | . . . . . Total Part Build Rating . | . . . . . Parts Repaired 6 | . 6 . . . Time 168 | . 168 . . . Parts Recycled . | . . . . . Recycled Matter . | . . . . . Retrieved Matter . | . . . . . Retrieved Components . | . . . . . Parts Scanalyzed . | . . . . . Part Schematics Acquired . | . . . . . Parts Damaged . | . . . . . Bothacking | -11 -10 -10 -10 -9 ------------ Run | Scr Mat Min Exi Min Used RIF Installer . | . . . . . Robots Hacked . | . . . . . Non-combat . | . . . . . Combat . | . . . . . Robot Hacks Applied . | . . . . . Relay Couplers Released . | . . . . . Fabnet Peak Effective % . | . . . . . Robots Rewired . | . . . . . Allies Hacked . | . . . . . Hacks Repelled . | . . . . . Allies | -11 -10 -10 -10 -9 -------- Run | Scr Mat Min Exi Min Total Allies . | . . . . . Largest Group . | . . . . . Highest-Rated Group . | . . . . . Highest-Rated Ally . | . . . . . Total Orders . | . . . . . Ally Attacks . | . . . . . Total Damage . | . . . . . Kills . | . . . . . Allies Corrupted . | . . . . . Allies Melted . | . . . . . Intel | -11 -10 -10 -10 -9 ------- Run | Scr Mat Min Exi Min Robot Analysis Total 2 | . 1 1 . . Derelict Logs Recovered 2 | . . 1 . 1 Drone Launches . | . . . . . Drone Recoveries . | . . . . . Exploration | -11 -10 -10 -10 -9 ------------- Run | Scr Mat Min Exi Min Turns Passed 4606 | . 2660 1063 463 420 Spaces Moved 2355 | 1 1252 616 288 198 Core . | . . . . . Treads 1654 | . 552 616 288 198 Legs 701 | 1 700 . . . Wheels . | . . . . . Hover . | . . . . . Flight . | . . . . . Fastest Speed 120 | 120 120 160 160 160 Average Speed 154 | 120 148 160 160 160 Slowest Speed 190 | 120 190 160 160 160 Overloaded Moves . | . . . . . Propulsion Burnouts . | . . . . . Robots Hopped . | . . . . . Cave-ins Triggered . | . . . . . Exploration Rate (%) 56 | 2 97 87 71 27 Regions Visited 4 Branch Regions 3 Pre-discovered Areas 4 | . 2 1 1 . Known Exits Taken . | . . . . . Unknown Exits Taken 4 | 1 1 1 1 . Scrap Searched 2 | . . 2 . . Spaces Dug . | . . . . . Terrain Destroyed 18 | . . 13 . 5 Melee . | . . . . . Projectile 5 | . . . . 5 AOE 13 | . . 13 . . Terrain Rammed . | . . . . . Walls Destroyed . | . . . . . Machines Disabled . | . . . . . Actions | -11 -10 -10 -10 -9 --------- Run | Scr Mat Min Exi Min Total 3102 | . 1910 664 291 237 Wait 506 | . 477 24 . 5 Move 2351 | . 1251 615 287 198 Hop . | . . . . . Pick Up 22 | . 19 2 1 . Fast Attach 9 | . 9 . . . Attach 5 | . 4 . 1 . Detach 4 | . 4 . . . Swap 16 | . 14 2 . . Drop 21 | . 17 2 2 . Fire 113 | . 67 14 . 32 Melee . | . . . . . Ram . | . . . . . Kick 44 | . 44 . . . Crush 11 | . 4 5 . 2 Escape Stasis . | . . . . . Rewire . | . . . . . Trap . | . . . . . Miscellaneous . | . . . . . Route ------- -11/Scrapyard -10/Materials (discovered 4 exits: [*Mat x3] / *Min) -10/Mines (discovered 2 exits: [*Mat] / *Exi) -10/Exiles -9/Mines History --------- Turn | Location | Event 1 | -11/Scrapyard | Discovered new exit (range 0) 1 | -11/Scrapyard | Entered Materials 164 | -10/Materials | Discovered new exit (range 16) 311 | -10/Materials | Build established: Mutant 456 | -10/Materials | Destroyed 8 combat bots 1287 | -10/Materials | Discovered new exit (range 7) 1404 | -10/Materials | Discovered new exit (range 16) 1517 | -10/Materials | Central database locked down 2074 | -10/Materials | Discovered new exit (range 5) 2429 | -10/Materials | Repaired Hvy. Assault Rifle 2462 | -10/Materials | Repaired Hvy. Assault Rifle 2490 | -10/Materials | Repaired Lgt. Treads 2517 | -10/Materials | Repaired Lgt. Treads 2545 | -10/Materials | Repaired Lgt. Treads 2571 | -10/Materials | Repaired Lgt. Treads 2661 | -10/Materials | Entered Mines 2671 | -10/Mines | Learned location of Storage (-9) 2733 | -10/Mines | Core integrity fell below 50% 2978 | -10/Mines | Deemed a non-threat by the Exiles lab entrance 2978 | -10/Mines | Discovered new exit (range 5) 3037 | -10/Mines | A weapon hastily lodged in a ceiling crevice suddenly fell to the ground 3295 | -10/Mines | Discovered new exit (range 8) 3310 | -10/Mines | Central database locked down 3496 | -10/Mines | Destroyed YI-UF0 3724 | -10/Mines | Entered Exiles 3768 | -10/Exiles | Met 8R-AWN 3790 | -10/Exiles | Met EX-HEX 3836 | -10/Exiles | Met EX-BIN 3859 | -10/Exiles | Aligned with FarCom system 3860 | -10/Exiles | Given EX-Vault access code 3897 | -10/Exiles | Opened EX-Vault 3909 | -10/Exiles | Found Firepult 3943 | -10/Exiles | Warned to stay clear of 0b10 Research branches 3993 | -10/Exiles | Met EX-DEC 4003 | -10/Exiles | Learned location of Zion (-6) 4167 | -10/Exiles | Discovered new exit (range 12) 4187 | -10/Exiles | Left Exiles lab with Firepult 4187 | -10/Exiles | Entered Mines 4323 | -9/Mines | Learned location of 1 exit from Proximity Caves 4602 | -9/Mines | Core integrity fell below 20% 4607 | -9/Mines | Destroyed by G-34 Mercenary with Small Laser Last Messages --------------- 04389_ R-06 Scavenger collects Tractor Beam. 04392_ R-06 Scavenger collects Sml. Storage Unit. 04396_ R-06 Scavenger collects Heat Sink. 04398_ R-06 Scavenger destroyed. 04462_ Acquired 6 matter. 04473_ T-07 Excavator destroyed. 04474_ Acquired 6 matter. 04476_ K-01 Serf collects debris. 04484_ Acquired 6 matter. 04497_ U-05 Engineer builds a Wall. 04503_ R-06 Scavenger collects Com. Wheel. 04518_ Destroyed Tractor Beam. 04521_ U-05 Engineer builds a Wall. 04521_ R-06 Scavenger destroyed. 04526_ R-06 Scavenger collects Com. Wheel. 04543_ Acquired 36 matter. 04565_ K-01 Serf collects debris. 04603_ L-31 Rogue destroyed. 04604_ K-01 Serf collects debris. 04604_ U-05 Engineer builds a Wall. Map ----- +----------------------------------------------------+ | ####????# """???????????????????????????? | | ## ##???# """? #????????????????????????? | | #?## #???# #????????????????????????? | | ???# #???# """ #????????????????????????? | | ???# ##### """ ??????????????????????????? | | ??## ## """???????????????????????????? | | ??# ###### #?# ????????????????????????????? | | ??# ##????# #??# #?????????????????????????????? | | ??# #?????#!#??# ####### #????????????????? | | ?## #????##*#??#= #?????????????????? | | ## #######%####=!######## #????##???????????? | | |=%%=[%*==%%%*#???????????????# #???????????? | | ############!=##????????????## #???????????? | | #??????????#!%##???????????? ???????????? | | #?????######![##???????????? ????????????? | | ## ##?????# #?????????????# #????????????? | | ?####??????# #### ##????????????# ###??????????? | | ???####????# #### #????????????# ???????????? | | ?### ##???# #???????????## ##???????????? | | ## ##### #### ##??######?## ##??????????? | | # + #?## ##### ### ##?????????? | | # ########## t ##????????? | | ## ##??????## r ####?????? | | ?#####???????# k #?????? | | ?????????????# g % #???????????? | | ?????????????## uu@ ## #???????????? | | ??????????????## #### #### #???????????? | | ???????????????## ### #### ##??# #???????????? | | ????????????????## #?##???####???# #???????????? | | ?????????????????# #?????????????# #???????????? | | ?????????????????# #?????????????# #???????????? | | ????????????????? #?????????????# ???????????? | | ???????????????? #?????????????####???????????? | | ???????????????? ####????????????????????????????? | | ??????????????? ????????????????????????????????? | | ??????????????? #????????????????????????????????? | | ?????????????? ?????????????????????????????????? | | ?????????????? ??????????????????????????????????? | | ?????????????????????????????????????????????????? | | ?????????????????????????????????????????????????? | | ?????????????????????????????????????????????????? | | ?????????????????????????????????????????????????? | | ?????????????????????????????????????????????????? | | ?????????????????????????????????????????????????? | | ?????????????????????????????????????????????????? | | ?????????????????????????????????????????????????? | | ?????????????????????????????????????????????????? | | ?????????????????????????????????????????????????? | | ?????????????????????????????????????????????????? | | ?????????????????????????????????????????????????? | +----------------------------------------------------+ Best States ------------- Heat Dissipation 25 Energy Generation 10 Energy Capacity 250 Matter Stores 300 Matter Capacity 300 Sight Range 16 Terrain Scan Density 10 Armor Coverage 150 Evasion (%) 55 Recoil Reduction 2 Item Schematics ----------------- None Robot Schematics ------------------ None Fabricated ------------ Nothing Alien Tech Used ----------------- None Achievements -------------- None Challenges ------------ None Game ------ Seed ChromaticReinforcedChip Manual? 0 Play Time 00:16:54 Cumulative 711.8 hours Start 2022.05.13 @ 21:21:49 End 2022.05.13 @ 21:37:24 Sessions 1 Manual Loads 0 Difficulty Rogue Special Mode None Game No. 318 Rogue 317 Adventurer 1 Explorer 0 Win Type - Total 80 Types 23/9/12/3/2/1/29/1/0 Lore% 98 Gallery% 99 Achievement% 89 Wizard Run 0 Options --------- ASCII 1 Keyboard 1 Movement Numpad Keybinds 0 Fullscreen 0 Font 18/Smallcaps Map View 76x50 Tactical HUD 1 Map Filters NONE Filters NONE Steam 1 RUN: 428c8162-7bce-4fa9-9240-d5edc1ff0084